Cogmind - Beta 14 @@@ ROGUE MODE // 2024.09.07 @ 18:27:53 Player: Daffa0360 Result: Destroyed by G-47 Trooper with Particle Gun Performance ------------- Evolutions (2) 1000 Regions Visited (6) 1200 Robots Destroyed (27) 135 Value Destroyed (1136) 1136 Prototype IDs (26) 520 Alien Tech Used (0) 0 Bonus (1101) 1101 TOTAL SCORE: 5092 Bonus ------- High Alert Combat Kills 33 Follower Combat Kills 68 Entered Garrisons 200 Used RIF Installer 500 Aligned with FarCom 300 Cogmind --------- Core Integrity 0/550 Matter 277/300 Energy 100/100 System Corruption 0% Temperature Cool (9) Movement Core (150) Ox2 Location -8/Garrison Parts ------- > --- POWER (1) -------- (None) > --- PROPULSION (2) --- (None) > --- UTILITY (6) ------ Small Storage Unit Improved Signal Interpreter > --- WEAPON (2) ------- Light Assault Rifle Light Assault Rifle > --- INVENTORY (8) ---- Aluminum Leg Titanium Leg Experimental Sensor Array Cloak of Protection Relay Coupler [Sentry] (22) Improved Datajack Peak State ------------ > --- POWER ------------ Ion Engine > --- PROPULSION ------- Carbon-fiber Leg Titanium Leg > --- UTILITY ---------- Small Storage Unit Experimental Sensor Array Improved Signal Interpreter > --- WEAPON ----------- Pulse Rifle Grenade Launcher > --- INVENTORY -------- Light Nuclear Core Wheel Seismic Detector Cloak of Protection Light Cannon Improved Datajack Mining Laser [Rating: 25] Favorites ----------- Power Ion Engine Engine Ion Engine Power Core Light Nuclear Core Propulsion Titanium Leg Leg Titanium Leg Wheel Wheel Flight Unit Flight Unit Utility Small Storage Unit Device Seismic Detector Storage Small Storage Unit Processor Improved Signal Interpreter Weapon Pulse Rifle Energy Gun Pulse Rifle Ballistic Gun Assault Rifle Ballistic Cannon Light Cannon Launcher Grenade Launcher Special Weapon Mining Laser Special Melee Weapon Improved Datajack Build | -11 -10 -10 -10 -9 -8 -8 ------- Run | Yrd Mat Min Exi Min Mat Gar Slots Evolved 4 | . . . . . 4 . Power . | . . . . . . . Propulsion . | . . . . . . . Utility 4 | . . . . . 4 . Weapon . | . . . . . . . Parts Attached 24 | . 1 5 1 . 3 14 Power 2 | . . . . . 1 1 Engine 1 | . . . . . . 1 Core 1 | . . . . . 1 . Reactor . | . . . . . . . Propulsion 6 | . . 2 . . . 4 Treads . | . . . . . . . Leg 2 | . . 2 . . . . Wheel 2 | . . . . . . 2 Hover . | . . . . . . . Flight 2 | . . . . . . 2 Utility 4 | . . 2 . . 1 1 Device 3 | . . 1 . . 1 1 Storage . | . . . . . . . Processor 1 | . . 1 . . . . Hackware . | . . . . . . . Protection . | . . . . . . . Artifact . | . . . . . . . Weapon 12 | . 1 1 1 . 1 8 Energy Gun 3 | . . . 1 . . 2 Energy Cannon . | . . . . . . . Ballistic Gun 2 | . . . . . . 2 Ballistic Cannon 1 | . . . . . 1 . Launcher 2 | . . 1 . . . 1 Special Weapon 3 | . 1 . . . . 2 Impact Weapon . | . . . . . . . Slashing Weapon . | . . . . . . . Piercing Weapon . | . . . . . . . Special Melee Weapon 1 | . . . . . . 1 Unidentified Prototypes 1 | . . 1 . . . . Parts Lost 12 | . . . . . 4 8 Power 3 | . . . . . 2 1 Propulsion 4 | . . . . . 1 3 Utility 1 | . . . . . . 1 Weapon 4 | . . . . . 1 3 Highest Loss Streak 5 | . . . . . 3 5 To Critical Strikes . | . . . . . . . Average Slot Usage (%) 68 | . 85 85 94 100 59 49 Engine 7 | . 14 14 14 14 4 . Leg 17 | . 28 28 28 28 16 5 Wheel 1 | . . . . . . 5 Storage 11 | . 14 14 14 14 9 9 Processor 6 | . . . 14 14 9 9 Energy Gun 5 | . 14 . 6 14 9 4 Ballistic Gun 6 | . 14 14 2 . . 4 Launcher 4 | . . 7 14 14 3 . Special Weapon 3 | . . 6 . . . 4 Peak Build Rating 25 | 6 6 15 17 17 25 17 Average Rating 12 | 6 5 8 15 17 17 12 On Entrance 11 | 6 6 6 15 17 17 12 Naked Turns . | . . . . . . . Heaviest Build 16 | 14 14 15 16 16 16 12 Greatest Support 32 | 20 20 32 32 32 32 17 Greatest Overweight (x) 2 | . . 1 . . . 2 Average Overweight (x) . | . . . . . . . Largest Inventory Capacity 8 | 8 8 8 8 8 8 8 Average Capacity 8 | 8 8 8 8 8 8 8 Most Carried 8 | 8 8 8 8 8 8 8 Average Carried 7 | 6 7 7 7 8 7 5 Final Capacity 8 | 8 8 8 8 8 8 8 Final Carried 8 | 6 8 8 8 8 7 6 Class Distribution -------------------- 100% | Mutant Dominant Class ---------------- Mutant | -10/Materials Mutant | -10/Mines Mutant | -10/Exiles Mutant | -9/Mines Mutant | -8/Materials Mutant | -8/Garrison Resources | -11 -10 -10 -10 -9 -8 -8 ----------- Run | Yrd Mat Min Exi Min Mat Gar Matter Collected 645 | 242 15 36 . 75 77 200 Remotely . | . . . . . . . Salvage Created 748 | 181 49 19 . . 180 319 Parts 36 | 6 7 3 . . 4 16 Haulers Intercepted . | . . . . . . . Recyclers Shooed . | . . . . . . . Parts Field Recycled . | . . . . . . . Retrieved Matter . | . . . . . . . Parts Self-Destructed . | . . . . . . . Prevented . | . . . . . . . Kills | -11 -10 -10 -10 -9 -8 -8 ------- Run | Yrd Mat Min Exi Min Mat Gar Combat Hostiles Destroyed 22 | . 3 3 . . 6 10 Guns 16 | . 3 1 . . 3 9 Cannons 3 | . . . . . 3 . AOE 3 | . . 2 . . . 1 Classes Destroyed 5 | 2 1 . . . 1 1 Tunneler 4 | 4 . . . . . . Recycler 1 | 1 . . . . . . Swarmer 9 | . 3 3 . . . 3 Grunt 12 | . . . . . 6 6 Sentry 1 | . . . . . . 1 Best Kill Streak 4 | 3 3 3 . . 4 3 Combat Bots Only 4 | . 3 3 . . 4 3 Max Kills in Single Turn 2 | 1 1 2 . . 1 1 Gunslinging . | . . . . . . . Exploded 2 | . . 2 . . . 1 Melee . | . . . . . . . Uniques/NPCs Destroyed . | . . . . . . . Combat | -11 -10 -10 -10 -9 -8 -8 -------- Run | Yrd Mat Min Exi Min Mat Gar Hostile Shots Fired 164 | . 12 12 . . 56 84 Missed 47 | . 5 2 . . 13 27 Damage Taken 1692 | . 63 74 . . 668 887 Core 569 | . 10 9 . . 140 410 Absorbed by Shields . | . . . . . . . Regen/Repaired (Parts) 11 | . . . . . 11 . Core Remaining (%) 96 | 100 . . . 92 . . Volleys Fired 113 | 14 6 8 . . 21 64 Largest 2 | 2 2 1 . . 2 2 Hottest 100 | 70 70 30 . . 98 100 Shots Fired 176 | 28 12 8 . . 38 90 Gun 141 | 28 12 6 . . 20 75 Cannon 18 | . . . . . 18 . Launcher 7 | . . 2 . . . 5 Special 10 | . . . . . . 10 Kinetic 96 | 14 6 6 . . 18 52 Thermal 73 | 14 6 . . . 20 33 Explosive 7 | . . 2 . . . 5 Electromagnetic . | . . . . . . . Robot Hit Streak 11 | 8 2 2 . . 7 11 Robot Miss Streak 4 | 3 2 3 . . 1 4 Penetration Max . | . . . . . . . Secondary Targets 1 | . . . . . . 1 Max Gunslinging Chain 1 | . . . . . . 1 Shots Hit Robots 113 | 20 5 3 . . 30 55 Core Hits 52 | 6 3 4 . . 12 27 Critical Kills . | . . . . . . . Critical Parts Destroyed 1 | 1 . . . . . . Critical Strikes 7 | 1 1 . . . 2 3 Burn 6 | . 1 . . . 2 3 Destroy 1 | 1 . . . . . . Melee Attacks . | . . . . . . . Impact . | . . . . . . . Slashing . | . . . . . . . Piercing . | . . . . . . . Sneak Attacks . | . . . . . . . Combat Hostiles . | . . . . . . . Follow-up Attacks . | . . . . . . . Damage Inflicted 1654 | 246 63 118 . . 532 695 Guns 1234 | 246 63 36 . . 309 580 Cannons 223 | . . . . . 223 . Explosions 197 | . . 82 . . . 115 Melee . | . . . . . . . Ramming . | . . . . . . . Kinetic 675 | 122 24 36 . . 223 270 Thermal 782 | 124 39 . . . 309 310 Explosive 197 | . . 82 . . . 115 Electromagnetic . | . . . . . . . Impact . | . . . . . . . Slashing . | . . . . . . . Piercing . | . . . . . . . Highest Corruption . | . . . . . . . Average Corruption . | . . . . . . . Corruption Purged . | . . . . . . . Corruption Blocked . | . . . . . . . Overload Shots . | . . . . . . . Overflow Damage 12 | . . . . . . 12 Projectiles . | . . . . . . . Explosions 12 | . . . . . . 12 Melee . | . . . . . . . Knockbacks 4 | . . . . . 4 . Impact . | . . . . . . . Kinetic 4 | . . . . . 4 . Secondary . | . . . . . . . Self-Inflicted Damage 45 | . . . . . . 45 Shots 2 | . . . . . . 2 Rammed . | . . . . . . . Targets Rammed . | . . . . . . . Kicked . | . . . . . . . Crushed . | . . . . . . . Highest Temperature 210 | 54 45 . . . 210 80 Average Temperature 52 | 26 19 . . . 95 27 Received Heat Transfer 981 | . 27 . . . 432 522 Effects 1 | . . . . . 1 . Energy Bleed 1 | . . . . . 1 . Siege Activations . | . . . . . . . Robots Corrupted . | . . . . . . . Combat Hostiles . | . . . . . . . Parts Fried . | . . . . . . . Impact Corruptions . | . . . . . . . Robots Melted . | . . . . . . . Combat Hostiles . | . . . . . . . Parts Melted 3 | 1 . . . . . 2 Heat Transferred 2257 | 370 185 . . . 814 888 Parts Sabotaged . | . . . . . . . Parts Stolen . | . . . . . . . Parts Stripped . | . . . . . . . Power Chain Reactions . | . . . . . . . Alert | -11 -10 -10 -10 -9 -8 -8 ------- Run | Yrd Mat Min Exi Min Mat Gar Peak Influence 446 | 25 120 127 . . 97 446 Initial 46 | . 16 46 . . . 34 Average 115 | 11 78 34 . . 35 238 Maximum Alert Level 2 | . . . . . . 2 Low Security (%) 78 | 100 100 100 . 100 100 44 Level 1 11 | . . . . . . 30 Level 2 10 | . . . . . . 25 Level 3 . | . . . . . . . Level 4 . | . . . . . . . Level 5 . | . . . . . . . High Security . | . . . . . . . Max Security . | . . . . . . . Squads Dispatched 3 | . . 1 . . 2 . Investigation 1 | . . 1 . . . . Extermination . | . . . . . . . Reinforcement 1 | . . . . . 1 . Assault . | . . . . . . . Garrison 1 | . . . . . 1 . Intercept . | . . . . . . . Searches Triggered . | . . . . . . . Construction Impeded . | . . . . . . . Haulers Reinforced . | . . . . . . . Active Scanning Responses . | . . . . . . . Cargo Convoy Interrupts . | . . . . . . . Stealth | -11 -10 -10 -10 -9 -8 -8 --------- Run | Yrd Mat Min Exi Min Mat Gar Distress Signals 2 | . . . . . 2 . Communications Jammed . | . . . . . . . Distress Signals . | . . . . . . . Times Spotted 40 | . 10 4 . . 11 15 Peak Tracking Total 5 | . 5 3 . . 4 4 Tactical Retreats 4 | . . 1 . . . 3 Traps | -11 -10 -10 -10 -9 -8 -8 ------- Run | Yrd Mat Min Exi Min Mat Gar Traps Triggered . | . . . . . . . Indirectly . | . . . . . . . Trap Hack Attempts . | . . . . . . . Triggered . | . . . . . . . Disarmed . | . . . . . . . Reprogrammed . | . . . . . . . Reused . | . . . . . . . Traps Extracted . | . . . . . . . Installed . | . . . . . . . Triggered . | . . . . . . . Machines | -11 -10 -10 -10 -9 -8 -8 ---------- Run | Yrd Mat Min Exi Min Mat Gar Machines Disabled 2 | . . . . . . 2 Max in Single Turn 1 | . . . . . . 1 Garrison Relay 2 | . . . . . . 2 Machines Repaired . | . . . . . . . Machines Dismantled . | . . . . . . . Machines Sabotaged . | . . . . . . . Overloaded Fab Kills . | . . . . . . . Hacking | -11 -10 -10 -10 -9 -8 -8 --------- Run | Yrd Mat Min Exi Min Mat Gar Machines Accessed 10 | . 2 2 1 . 4 1 Terminals 5 | . 2 . . . 2 1 Fabricators . | . . . . . . . Repair Stations 1 | . . . . . 1 . Recycling Units . | . . . . . . . Scanalyzers . | . . . . . . . Garrison Access 1 | . . . . . 1 . Total Hacks 15 | . 4 2 1 . 7 1 Successful 12 | . 2 2 1 . 6 1 Failed 3 | . 2 . . . 1 . Catastrophic 1 | . . . . . 1 . Database Lockouts . | . . . . . . . Manual 4 | . . . 1 . 3 . Terminals 9 | . 4 . . . 4 1 Fabricators . | . . . . . . . Repair Stations 2 | . . . . . 2 . Recycling Units . | . . . . . . . Scanalyzers . | . . . . . . . Garrison Access 1 | . . . . . 1 . Terminal Hacks 7 | . 2 2 1 . 1 1 Prototype ID Bank 1 | . 1 . . . . . Open Door 2 | . . 2 . . . . Alert Level 1 | . . . . . 1 . Locate Traps 1 | . 1 . . . . . Garrison Registry 1 | . . . . . . 1 Derelict Proto ID Bank 1 | . . . 1 . . . Fabricator Hacks . | . . . . . . . Repair Station Hacks 2 | . . . . . 2 . Scan Component 1 | . . . . . 1 . Repair 1 | . . . . . 1 . Recycling Unit Hacks . | . . . . . . . Scanalyzer . | . . . . . . . Garrison Access Hacks 1 | . . . . . 1 . Unlock Access 1 | . . . . . 1 . Unauthorized Hacks 2 | . . . . . 2 . Terminals 2 | . . . . . 2 . Assimilate 1 | . . . . . 1 . Botnet 1 | . . . . . 1 . Fabricators . | . . . . . . . Repair Stations . | . . . . . . . Recycling Units . | . . . . . . . Scanalyzers . | . . . . . . . Garrison Access . | . . . . . . . Data Cores Recovered . | . . . . . . . Used . | . . . . . . . Hacking Detections 4 | . 2 . . . 2 . Full Trace Events . | . . . . . . . Feedback Events . | . . . . . . . Feedback Blocked . | . . . . . . . Robot Schematics Acquired . | . . . . . . . Robots Built . | . . . . . . . Authchips . | . . . . . . . Time . | . . . . . . . Total Robot Build Rating . | . . . . . . . Part Schematics Acquired . | . . . . . . . Parts Built . | . . . . . . . Authchips . | . . . . . . . Time . | . . . . . . . Total Part Build Rating . | . . . . . . . Parts Repaired 1 | . . . . . 1 . Time 108 | . . . . . 108 . Parts Recycled . | . . . . . . . Recycled Matter . | . . . . . . . Retrieved Matter . | . . . . . . . Retrieved Components . | . . . . . . . Parts Scanalyzed . | . . . . . . . Part Schematics Acquired . | . . . . . . . Parts Damaged . | . . . . . . . Bothacking | -11 -10 -10 -10 -9 -8 -8 ------------ Run | Yrd Mat Min Exi Min Mat Gar Used RIF Installer 1 | . . . . . . 1 Robots Hacked . | . . . . . . . Non-combat . | . . . . . . . Combat . | . . . . . . . Robot Hacks Applied . | . . . . . . . Relay Couplers Released 8 | . . . . . . 8 Machine Destruction 8 | . . . . . . 8 Fabnet Peak Effective % . | . . . . . . . Robots Rewired . | . . . . . . . Allies Hacked . | . . . . . . . Hacks Repelled . | . . . . . . . Allies | -11 -10 -10 -10 -9 -8 -8 -------- Run | Yrd Mat Min Exi Min Mat Gar Total Allies 3 | . . . . 3 . . Largest Group 3 | . . . . 3 3 . Highest-Rated Group 40 | . . . . 40 40 . Highest-Rated Ally 16 | . . . . 16 16 . Total Orders . | . . . . . . . Ally Attacks 15 | . . . . . 15 . Total Damage 152 | . . . . . 152 . Kills 2 | . . . . . 2 . Allies Corrupted . | . . . . . . . Allies Melted . | . . . . . . . Intel | -11 -10 -10 -10 -9 -8 -8 ------- Run | Yrd Mat Min Exi Min Mat Gar Robot Analysis Total . | . . . . . . . Derelict Logs Recovered 2 | . . 2 . . . . Drone Launches . | . . . . . . . Drone Recoveries . | . . . . . . . Exploration | -11 -10 -10 -10 -9 -8 -8 ------------- Run | Yrd Mat Min Exi Min Mat Gar Turns Passed 2996 | 83 143 783 268 91 558 1070 Spaces Moved 1747 | 32 100 498 213 46 226 632 Core 14 | . . . . . . 14 Treads . | . . . . . . . Legs 1245 | 32 100 498 213 46 226 130 Wheels 412 | . . . . . . 412 Hover . | . . . . . . . Flight 76 | . . . . . . 76 Fastest Speed 37 | 120 120 120 125 125 125 37 Average Speed 113 | 120 120 123 125 125 125 95 Slowest Speed 190 | 120 120 190 125 125 130 150 Overloaded Moves . | . . . . . . . Propulsion Burnouts . | . . . . . . . Robots Hopped . | . . . . . . . Cave-ins Triggered . | . . . . . . . Exploration Rate (%) 35 | 3 24 86 60 11 18 45 Regions Visited 6 Branch Regions 3 Pre-discovered Areas . | . . . . . . . Known Exits Taken 4 | . . 1 1 1 1 . Unknown Exits Taken 2 | 1 1 . . . . . Scrap Searched 3 | . . 1 . 2 . . Spaces Dug 5 | . . . . . . 5 Terrain Destroyed 42 | . . 14 . . . 28 Melee . | . . . . . . . Projectile . | . . . . . . . AOE 42 | . . 14 . . . 28 Terrain Rammed . | . . . . . . . Walls Destroyed . | . . . . . . . Machines Disabled . | . . . . . . . Actions | -11 -10 -10 -10 -9 -8 -8 --------- Run | Yrd Mat Min Exi Min Mat Gar Total 2574 | 49 111 660 215 79 461 999 Wait 662 | . . 139 . 34 210 279 Move 1742 | 31 99 497 212 45 226 632 Hop . | . . . . . . . Pick Up 19 | 2 3 4 1 . 1 8 Fast Attach 4 | . 1 3 . . . . Attach 13 | . . . 1 . 2 10 Detach 1 | . . . . . . 1 Swap 8 | . . 2 . . 1 5 Drop 12 | 2 2 7 1 . . . Fire 113 | 14 6 8 . . 21 64 Melee . | . . . . . . . Ram . | . . . . . . . Kick . | . . . . . . . Crush . | . . . . . . . Escape Stasis . | . . . . . . . Rewire . | . . . . . . . Trap . | . . . . . . . Miscellaneous . | . . . . . . . Route ------- -11/Scrapyard -10/Materials -10/Mines (discovered 3 exits: [*Mat x2] / *Exi) -10/Exiles -9/Mines -8/Materials -8/Garrison (discovered 3 exits: *Sto x3) History --------- Turn | Location | Event 1 | -11/Scrapyard | Discovered new exit (range 2) 84 | -11/Scrapyard | Entered Materials 183 | -10/Materials | Discovered new exit (range 16) 227 | -10/Materials | Entered Mines 301 | -10/Mines | Build established: Mutant 328 | -10/Mines | Found a hidden stash of uninstalled traps 362 | -10/Mines | Found a damaged Exp. Sensor Array with a note attached 365 | -10/Mines | Found Prototype Device 365 | -10/Mines | Identified Exp. Sensor Array 376 | -10/Mines | Learned Materials emergency access door positions 390 | -10/Mines | Discovered new exit (range 12) 504 | -10/Mines | Met a Derelict who couldn't figure out how to use a Trap Extractor 759 | -10/Mines | Discovered new exit (range 15) 760 | -10/Mines | Learned 2 Materials zone layouts 954 | -10/Mines | Met a Derelict shopkeep closing up shop 1004 | -10/Mines | Deemed a non-threat by the Exiles lab entrance 1005 | -10/Mines | Discovered new exit (range 5) 1009 | -10/Mines | Identified exit to Exiles 1010 | -10/Mines | Entered Exiles 1040 | -10/Exiles | Met 8R-AWN 1060 | -10/Exiles | Met EX-HEX 1100 | -10/Exiles | Met EX-BIN 1115 | -10/Exiles | Aligned with FarCom system 1116 | -10/Exiles | Given EX-Vault access code 1145 | -10/Exiles | Opened EX-Vault 1152 | -10/Exiles | Found Cloak of Protection 1175 | -10/Exiles | Warned to stay clear of 0b10 Research branches 1213 | -10/Exiles | Met EX-DEC 1259 | -10/Exiles | Discovered new exit (range 12) 1277 | -10/Exiles | Identified exit to Mines 1278 | -10/Exiles | Left Exiles lab with Cloak of Protection 1278 | -10/Exiles | Entered Mines 1280 | -9/Mines | Assisted by bots powering up and referring to "LRC-V3" 1321 | -9/Mines | Discovered new exit (range 5) 1345 | -9/Mines | Identified exit to Materials 1369 | -9/Mines | Entered Materials 1369 | -8/Materials | Accompanied by 3 allies 1369 | -8/Materials | Evolved 4 slots: Utility x4 1563 | -8/Materials | Repaired Exp. Sensor Array 1868 | -8/Materials | Garrison activated, responded to threat 1905 | -8/Materials | Lost 3 parts (1p1n1w) 1927 | -8/Materials | Identified exit to Garrison 1927 | -8/Materials | Entered Garrison 2062 | -8/Garrison | Discovered new exit (range 68) 2062 | -8/Garrison | Discovered new exit (range 96) 2062 | -8/Garrison | Discovered new exit (range 51) 2134 | -8/Garrison | Garrison Relay disabled 2413 | -8/Garrison | Garrison Relay disabled 2633 | -8/Garrison | Triggered checkpoint 2644 | -8/Garrison | Core integrity fell below 50% 2705 | -8/Garrison | Lost 5 parts (1p1n3w) 2718 | -8/Garrison | Core integrity fell below 20% 2805 | -8/Garrison | Installed Relay Interface Framework 2829 | -8/Garrison | Identified exit to Storage 2969 | -8/Garrison | Triggered checkpoint 2997 | -8/Garrison | Destroyed by G-47 Trooper with Particle Gun Last Messages --------------- 02703_ Acquired 8 matter. 02706_ Acquired Lgt. Assault Rifle. 02717_ G-47 Trooper destroyed. 02717_ Switching to secondary target: G-47 Trooper. 02733_ Flight Unit destroyed. 02733_ Critical hit (Burn: +37). 02739_ G-47 Trooper destroyed. 02746_ Acquired 26 matter. 02762_ Acquired Aluminum Leg. 02770_ Acquired 40 matter. 02791_ The unstable cave ceiling collapses. Initiating installation procedure... 02805_ Relay Interface Framework installed. 02808_ Extracted 1 energy. 02829_ EXIT=IDENTIFIED: STORAGE 02969_ Beams of light sweep through the air. An alarm sounds. 02978_ Y-45 Defender destroyed. 02981_ Wheel destroyed. Map ----- +----------------------------------------------------+ | # ########### ###?????????????????????????# ### | | # # + #????????????############???# | | # # ######### #????????????#""""""""""#???# | | # #+#???????# #????????????#"""|[]!"""#???# ### | | #???????# #????????????#"" ""#???# #?# | | #???????# #????????????#"= # # ="#???# #?# | | ### #???????# #????????????#"! # # ]"#???# #?# | | ??# #???????# #????????????#"!^# # !"#???# #?# | | ### #???????# #????????????#"^ # # ]"#???# #?# | | !## #???????# #????????????#"! # # !"#???# #?# | | !## #???????# #????????????#"! # # !"#???# #?# | | #???????# #????????????#"" # # ""#???# #?# | | ### #???????# #????????????### # # ###???# #?# | | ??# #???????# #??????????????### ###?????# #?# | | ??# #???????# ##???????????????# #???????# #?# | | ??# #???????# T#?????###########++######### #?# | | ### ######### ##?????# ^^ ### | | ^ #??????# ^^ + + | | ### ^ #??????# ^^ + + | | ??# ######## #??????# #######++############### | | ??# #### #?# #??????# #?????# #?????????????? | | ?## #### ######## ####### #?????????????? | | ?## # + + ## g + #?????????????? | | ?## ##### ## ## ## ####### #?????????????? | | ?## # ## ##+##+## #?????# #?????????????? | | ?# # ### ##g ## @#?????# #?????????????? | | ?## # ### ##""""## #?????# #?????????????? | | ### # ### ####### #?????????????? | | + + #?????????????? | | ### + #?????????????? | | ??########## ##^^^^## ##########?????????????? | | ?????????### ## ## =###????????????????????? | | ?????????# [%* #????????????????????? | | ?????????# [ #????????????????????? | | ?????????# #????????????????????? | | ?????????# #????????????????????? | | ?????????### ## ## ###????????????????????? | | ?########### ## ## ###########????????????? | | ## " #????????????? | | + "%" #????????????? | | ## % " ###+#### #????????????? | | ?# #####+######""""###+##?# #??# #???????###??? | | ?# #???#%#????# g#?# #??# #??# #???????# #??? | | ## #####"######+####?# #??# #??# #??????##"##?? | | " " *%! #????# #### #### ######## T#?? | | + =#####%########????# + + ##?? | | ## #???#=#???????????###### #### ##### ### #??? | | ?# #???# #????????????????# #??# #???# #?###??? | | ?# #???#%#????????????????# #??# #???# #??????? | | ?# #???# #????????????????# #??# #???# #??????? | +----------------------------------------------------+ Best States ------------- Heat Dissipation 31 Energy Generation 14 Energy Capacity 250 Matter Stores 300 Matter Capacity 300 Sight Range 16 Terrain Scan Density 10 Evasion (%) 61 Item Schematics ----------------- None Robot Schematics ------------------ None Fabricated ------------ Nothing Alien Tech Used ----------------- None Achievements -------------- None Challenges ------------ None Game ------ Seed BehemothAssembledKit Manual? 0 Play Time 00:27:37 Cumulative 84.7 hours Start 2024.09.07 @ 17:26:02 End 2024.09.07 @ 18:27:53 Sessions 1 Manual Loads 0 Difficulty Rogue Special Mode None Game No. 138 Rogue 134 Adventurer 4 Explorer 0 Win Type - Total 0 Types 0/0/0/0/0/0/0/0/0 Lore% 39 Gallery% 49 Achievement% 37 Wizard Run 0 Options --------- Layout 2 ASCII 0 Keyboard 0 Movement Mouse Keybinds 0 Fullscreen 2 Font 24/Smallcaps Map View 50x44 Zoom Use 0% Tactical HUD 1 Map Filters NONE Filters NONE Steam 1 RUN: 139923c5-dc32-461c-95c5-16edbf56ef8e